bitfinex-derivatives/quotes_SOLF0:USTF0_20260115
["timestamp","ask_amount","ask_price","bid_price","bid_amount"]
[1768446022008,0.04655127,144.55,144.5,0.04750094]
[1768446023609,0.04655127,144.55,144.5,9.06685476]
[1768446030524,8.69823536,144.58,144.5,9.06685476]
[1768446031213,14.92373536,144.6,144.52,9.01935382]
[1768446031510,0.05256501,144.57,144.55,0.05274301]
[1768446031814,0.04880014,144.57,144.55,0.05274301]
[1768446034114,8.69823536,144.62,144.55,0.05274301]
[1768446034717,8.69823536,144.6,144.55,0.05274301]
[1768446036121,14.92413536,144.59,144.55,0.05274301]
[1768446036316,8.69823536,144.59,144.55,0.05274301]
[1768446036820,6.2252,144.61,144.49,9.01935382]
[1768446036821,8.69823536,144.57,144.49,9.01935382]
[1768446038021,8.69823536,144.6,144.52,0.04746942]
[1768446038225,8.69823536,144.6,144.52,9.01935382]
[1768446039128,0.05306937,144.57,144.55,0.05281195]
[1768446041224,0.05306937,144.57,144.52,9.01935382]
[1768446041426,8.69823536,144.56,144.45,11.6991617]
[1768446041628,8.69823536,144.56,144.48,9.01935382]
[1768446042229,8.69823536,144.56,144.51,0.04869576]
[1768446043530,8.69823536,144.59,144.51,9.06804958]
[1768446043732,8.69823536,144.59,144.54,0.05166622]
[1768446045033,14.92293536,144.62,144.54,9.07102004]
[1768446045426,8.69823536,144.61,144.54,9.07102004]
[1768446046937,14.92333536,144.61,144.54,9.07102004]
[1768446047130,8.69823536,144.6,144.54,9.07102004]
[1768446047436,0.04476274,144.58,144.54,9.07102004]
[1768446048037,0.04476274,144.58,144.54,0.05166622]
[1768446053038,8.40630686,144.58,144.54,0.05166622]
[1768446053841,0.04476274,144.58,144.54,0.05166622]
[1768446054344,0.04476274,144.58,144.54,8.83202175]
[1768446056838,8.40630686,144.58,144.51,8.78035553]
[1768446058043,8.40630686,144.58,144.53,0.04533537]
[1768446061053,0.04476274,144.58,144.53,8.8256909]
[1768446061346,0.04476274,144.58,144.53,10.54072118]
[1768446062751,0.04476274,144.58,144.53,16.76892118]
[1768446064058,0.04476274,144.58,144.53,10.54072118]
[1768446064354,0.04476274,144.58,144.53,8.8256909]
[1768446064752,10.12133714,144.58,144.53,0.04533537]
[1768446065957,8.36154412,144.57,144.53,0.04533537]
[1768446069660,14.58834412,144.57,144.53,0.04533537]
[1768446069866,14.58834412,144.57,144.51,8.78035553]
[1768446071761,8.36154412,144.57,144.51,8.78035553]
[1768446072161,8.36154412,144.57,144.53,0.0444569]
[1768446073762,14.58814412,144.57,144.53,0.0444569]
[1768446074565,8.36154412,144.57,144.53,0.0444569]
[1768446076962,8.36154412,144.57,144.49,10.49538581]
[1768446077656,8.36154412,144.56,144.49,10.49538581]
[1768446077856,8.36154412,144.56,144.51,0.05027624]
[1768446078059,0.04931988,144.55,144.51,0.05027624]
[1768446086468,9.0545482,144.55,144.51,0.05027624]
[1768446088665,0.04931988,144.55,144.51,0.05027624]
[1768446090168,0.04931988,144.55,144.51,8.53231931]
[1768446092780,9.00522832,144.59,144.51,14.76121931]
[1768446092969,9.00522832,144.59,144.52,8.48204307]
[1768446093764,9.00522832,144.59,144.52,10.19707335]
[1768446093968,0.04756566,144.57,144.54,0.05045647]
[1768446096372,0.04756566,144.57,144.54,8.53249954]
[1768446096574,15.23022832,144.61,144.54,8.53249954]
[1768446096777,9.00522832,144.61,144.55,10.19707335]
[1768446097479,0.04614254,144.59,144.55,10.19707335]
[1768446097865,0.04614254,144.59,144.55,8.48204307]
[1768446107782,0.04614254,144.59,144.54,1.76548675]
[1768446108085,0.04614254,144.59,144.54,10.24752982]
[1768446108581,0.04614254,144.59,144.54,8.53249954]
[1768446109785,0.04614254,144.59,144.56,8.48204307]
[1768446113989,0.04614254,144.59,144.54,14.70375522]
[1768446115084,0.04614254,144.59,144.55,8.42559875]
[1768446115990,8.6665931,144.59,144.54,0.05045647]
[1768446117093,8.6665931,144.59,144.54,8.47605522]
[1768446117294,8.6665931,144.59,144.54,0.05045647]
[1768446117496,8.62045056,144.56,144.5,8.42559875]
[1768446118203,8.62045056,144.55,144.5,8.42559875]
[1768446118407,10.33548084,144.55,144.51,0.05246448]
[1768446118706,0.04621374,144.54,144.51,0.05246448]
[1768446120406,10.33548084,144.53,144.46,8.42559875]
[1768446120707,96.8593,144.57,144.44,1.71503028]
[1768446120708,10.33548084,144.51,144.44,90.14559875]
[1768446121105,10.33548084,144.51,144.44,8.42559875]
[1768446121404,0.05092897,144.49,144.44,8.42559875]
[1768446122597,0.05092897,144.49,144.45,8.47574007]
[1768446122909,8.62045056,144.52,144.45,8.47574007]
[1768446123907,0.05317109,144.5,144.45,8.47574007]
[1768446127216,8.67362165,144.5,144.45,0.05014132]
[1768446129019,8.67362165,144.5,144.43,8.42559875]
[1768446129906,8.62045056,144.49,144.45,0.0458205]
[1768446132015,6.28297109,144.5,144.45,0.0458205]
[1768446133817,0.05317109,144.5,144.45,0.0458205]
[1768446138221,8.67362165,144.5,144.45,0.0458205]
[1768446139719,8.62045056,144.49,144.41,8.42559875]
[1768446140713,0.05176039,144.46,144.44,0.05006958]
[1768446140919,0.05176039,144.46,144.41,8.42559875]
[1768446141718,8.92009177,144.46,144.38,6.2347]
[1768446141920,8.86833138,144.46,144.37,8.62143801]
[1768446142123,0.04591416,144.43,144.37,8.62143801]
[1768446143212,0.04591416,144.43,144.39,0.04562571]
[1768446144323,8.49784854,144.43,144.39,0.04562571]
[1768446150430,0.04591416,144.43,144.39,0.04562571]
[1768446152024,99.60696371,144.48,144.39,0.04562571]
[1768446152025,8.45193438,144.47,144.39,8.71835446]
[1768446152226,8.45193438,144.47,144.39,8.67272875]
[1768446153033,0.04798784,144.44,144.42,0.04675483]
[1768446154525,8.45193438,144.47,144.42,0.04675483]
[1768446155825,0.05067621,144.46,144.42,0.04675483]
[1768446161733,8.50261059,144.46,144.4,8.67272875]
[1768446161934,8.50261059,144.46,144.38,8.67272875]
[1768446162838,8.50261059,144.46,144.41,0.04753722]
[1768446163330,6.2319,144.45,144.41,0.04753722]
[1768446164033,14.68383438,144.45,144.41,0.04753722]
[1768446165142,8.45193438,144.45,144.41,0.04753722]
[1768446181461,8.45193438,144.45,144.37,15.15877025]
[1768446182566,0.05213889,144.42,144.4,0.0472771]
[1768446182766,0.04863174,144.42,144.4,0.0472771]
[1768446189778,8.43687551,144.46,144.4,0.0472771]
[1768446189977,8.43687551,144.46,144.4,8.97124735]
[1768446190773,8.43687551,144.46,144.4,10.69043371]
[1768446190973,0.0472398,144.44,144.4,10.69043371]
[1768446194582,0.0472398,144.44,144.4,8.97124735]
[1768446212183,8.93470878,144.44,144.36,14.94628242]
[1768446212388,10.60665534,144.43,144.36,8.71098242]
[1768446212882,10.60665534,144.43,144.37,8.71098242]
[1768446213284,0.0529379,144.41,144.39,0.04392298]
[1768446213988,8.88746898,144.45,144.39,8.7549054]
[1768446214188,8.88746898,144.45,144.39,8.71098242]
[1768446214994,0.04432695,144.43,144.39,8.71098242]
[1768446217096,1.71918636,144.46,144.39,8.71098242]
[1768446217297,1.71918636,144.46,144.4,8.75963142]
[1768446218294,0.04787726,144.44,144.4,8.75963142]
[1768446223799,8.93534624,144.44,144.4,0.048649]
[1768446224798,15.16764624,144.44,144.4,0.048649]
[1768446224989,16.8868326,144.44,144.4,0.048649]
[1768446227098,16.8868326,144.44,144.38,8.71098242]
[1768446228101,16.8868326,144.44,144.4,0.04463797]
[1768446232303,8.93534624,144.44,144.4,0.04463797]
[1768446232503,0.04787726,144.44,144.4,9.10723729]
[1768446234902,15.15444736,144.44,144.36,7.95448636]
[1768446235102,1.71918636,144.43,144.36,7.95448636]
[1768446235909,0.0499261,144.41,144.38,0.04683246]
[1768446236809,15.1065701,144.44,144.38,9.10943178]
[1768446237810,0.04972405,144.42,144.38,9.10943178]
[1768446238311,6.2325,144.44,144.38,9.10943178]
[1768446239512,0.0527736,144.42,144.38,9.10943178]
[1768446241410,8.9268437,144.42,144.38,0.04683246]
[1768446241712,8.9268437,144.42,144.36,9.06259932]
[1768446242207,0.0527736,144.42,144.36,9.06259932]
[1768446242716,0.0527736,144.42,144.38,0.04653222]
[1768446245210,15.1063701,144.44,144.38,9.10913154]
[1768446245800,8.8740701,144.44,144.38,9.10913154]
[1768446246305,0.0479787,144.42,144.38,9.10913154]
[1768446247300,8.8740701,144.46,144.39,9.06259932]
[1768446248213,15.1054701,144.46,144.39,9.06259932]
[1768446248413,0.04785132,144.44,144.41,0.0508506]
[1768446250611,15.15422142,144.44,144.37,9.06259932]
[1768446251517,15.15422142,144.44,144.39,0.04884118]
[1768446253620,6.2327,144.43,144.39,0.04884118]
[1768446254016,15.1067701,144.43,144.39,0.04884118]
[1768446254215,15.1071701,144.42,144.35,9.06259932]
[1768446255418,0.04660286,144.4,144.37,0.04429482]
[1768446262023,15.33830883,144.4,144.33,9.09420706]
[1768446262214,9.05760597,144.39,144.33,9.09420706]
[1768446263221,9.05760597,144.39,144.35,0.05242431]
[1768446263719,0.04660286,144.4,144.35,9.14663137]
[1768446267833,9.10420883,144.4,144.35,0.05242431]
[1768446270037,15.33830883,144.4,144.35,0.05242431]
[1768446277434,9.05760597,144.39,144.35,0.05242431]
[1768446278646,9.05760597,144.39,144.29,15.33250706]
[1768446278860,9.05760597,144.38,144.3,9.09420706]
[1768446279342,9.05760597,144.38,144.31,9.09420706]
[1768446279751,0.04545301,144.36,144.31,9.09420706]
[1768446280250,0.04545301,144.36,144.31,10.47420706]
[1768446280851,0.04545301,144.36,144.32,9.09420706]
[1768446287354,0.04545301,144.36,144.33,0.04612946]
[1768446300571,8.99858028,144.39,144.33,8.8349828]
[1768446300760,8.99858028,144.39,144.33,8.78885334]
[1768446301661,8.99858028,144.39,144.35,0.05140397]
[1768446301662,0.04991191,144.37,144.35,0.05140397]
[1768446303367,84.52613207,144.42,144.35,0.05140397]
[1768446303368,8.99858028,144.41,144.35,8.84025731]
[1768446304465,0.04562468,144.39,144.35,8.84025731]
[1768446305366,8.99858028,144.43,144.37,8.78885334]
[1768446305677,10.71767425,144.47,144.38,10.50794731]
[1768446306469,0.04579463,144.44,144.41,0.04591168]
[1768446314177,0.04579463,144.44,144.41,8.83476502]
[1768446314384,8.99858028,144.47,144.41,8.83476502]
[1768446314880,8.99858028,144.47,144.41,10.55385899]
[1768446315380,8.99858028,144.47,144.41,16.78715899]
[1768446315584,15.22838028,144.5,144.43,10.50794731]
[1768446316176,8.99858028,144.5,144.44,8.78885334]
[1768446316781,8.99858028,144.5,144.46,0.0462155]
[1768446319187,0.04674802,144.49,144.46,0.0462155]
[1768446324583,0.04674802,144.49,144.46,9.03924972]
[1768446324989,9.33450676,144.52,144.46,9.03924972]
[1768446329800,81.8,144.54,144.47,10.71212819]
[1768446329801,9.33450676,144.54,144.47,10.71212819]
[1768446330098,9.33450676,144.54,144.49,0.04475826]
[1768446330807,9.33450676,144.56,144.49,9.03779248]
[1768446331097,9.33450676,144.58,144.51,10.71212819]
[1768446331488,1.71909397,144.59,144.53,9.03954773]
[1768446331686,9.33450676,144.6,144.53,9.03954773]
[1768446332502,11.05360073,144.6,144.53,9.03954773]
[1768446332795,9.33450676,144.62,144.53,10.7586417]
[1768446333104,0.0446193,144.59,144.53,10.71212819]
[1768446333399,11.05360073,144.62,144.56,0.04683088]
[1768446333790,9.33450676,144.62,144.56,9.0398651]
[1768446333994,11.05360073,144.64,144.56,9.0398651]
[1768446334195,11.05360073,144.64,144.56,8.99303422]
[1768446334396,11.05360073,144.64,144.59,0.052391]
[1768446334601,9.33450676,144.64,144.59,0.052391]
[1768446336197,9.33450676,144.66,144.59,9.04542522]
[1768446336399,0.0509497,144.64,144.59,10.76451919]
[1768446337196,0.0509497,144.64,144.59,9.04542522]
[1768446337394,0.0509497,144.64,144.59,0.052391]
[1768446337395,11.10455043,144.64,144.59,0.052391]
[1768446340602,1.71909397,144.63,144.59,0.052391]
[1768446340904,9.38545646,144.64,144.59,0.052391]
[1768446341106,11.10455043,144.64,144.59,0.052391]
[1768446344301,11.05360073,144.62,144.59,0.052391]
[1768446344508,11.05360073,144.62,144.55,8.99303422]
[1768446345110,1.71909397,144.6,144.55,8.99303422]
[1768446345304,1.71909397,144.61,144.55,8.99303422]
[1768446345506,9.33450676,144.62,144.57,0.04455414]
[1768446345811,1.71909397,144.63,144.56,8.99303422]
[1768446346001,11.05360073,144.63,144.56,8.99303422]
[1768446346708,0.04832067,144.61,144.58,0.05015941]
[1768446347402,1.76741464,144.61,144.58,0.05015941]
[1768446348611,11.1019214,144.61,144.54,15.22063422]
[1768446348808,9.38282743,144.61,144.55,8.99303422]
[1768446349015,0.04832067,144.61,144.55,8.99303422]
[1768446349605,0.04832067,144.61,144.57,0.04834336]
[1768446351012,1.71909397,144.58,144.52,8.83631462]
[1768446351218,0.04832067,144.61,144.49,8.83631462]
[1768446351219,1.71909397,144.56,144.49,8.83631462]
[1768446351511,1.71909397,144.54,144.49,8.83631462]
[1768446352314,1.71909397,144.54,144.5,8.8860447]
[1768446352811,10.8038027,144.56,144.5,8.8860447]
[1768446353209,9.08470873,144.58,144.5,8.8860447]
[1768446353415,0.048824,144.55,144.5,8.8860447]
[1768446353718,17.0292027,144.6,144.52,8.83631462]
[1768446354713,0.04615014,144.57,144.55,0.04452197]
[1768446357114,0.04615014,144.57,144.52,8.83631462]
[1768446358016,9.13085887,144.57,144.49,8.83631462]
[1768446358316,0.04693007,144.54,144.52,0.05243594]
[1768446358616,9.08470873,144.57,144.52,0.05243594]
[1768446358819,15.31130873,144.57,144.52,0.05243594]
[1768446359118,9.08470873,144.56,144.52,0.05243594]
[1768446359816,0.04745724,144.55,144.52,0.05243594]
[1768446360918,10.85125994,144.55,144.47,8.83631462]
[1768446361314,9.08470873,144.54,144.47,8.83631462]
[1768446361612,10.8038027,144.53,144.45,8.83631462]
[1768446361816,1.71909397,144.51,144.45,8.83631462]
[1768446362017,0.05148729,144.5,144.45,8.83631462]
[1768446363017,0.05148729,144.5,144.46,0.04833067]
[1768446365115,9.13619602,144.5,144.43,8.83631462]
[1768446365319,9.08470873,144.49,144.43,8.83631462]
[1768446365811,9.08470873,144.49,144.41,90.57631462]
[1768446366012,9.08470873,144.48,144.41,8.83631462]
[1768446366211,0.04735945,144.46,144.43,0.04760656]
[1768446368019,0.04735945,144.46,144.39,8.83631462]
[1768446368615,9.13206818,144.46,144.39,8.83631462]
[1768446370014,9.13206818,144.46,144.41,0.04767068]
[1768446382021,9.13206818,144.46,144.33,117.53962104]
[1768446382022,9.13206818,144.46,144.34,11.41591343]
[1768446382228,9.11454082,144.44,144.34,8.73149551]
[1768446383325,0.04811237,144.4,144.38,0.04456683]
[1768446387935,9.16265319,144.4,144.34,6.2364]
[1768446388434,9.16265319,144.4,144.34,14.96789551]
[1768446388934,9.16265319,144.4,144.36,0.04776066]
[1768446389832,0.04811237,144.4,144.36,0.04776066]
[1768446390223,0.04811237,144.4,144.36,8.77925617]
[1768446390424,9.11454082,144.42,144.36,8.77925617]
[1768446391838,9.11454082,144.42,144.36,15.01475617]
[1768446393432,0.04940418,144.4,144.36,15.01475617]
[1768446394539,9.11454082,144.42,144.36,15.01475617]
[1768446395439,0.05061402,144.4,144.36,15.01475617]
[1768446398336,0.05061402,144.4,144.37,8.73149551]
[1768446398534,15.34614082,144.46,144.38,8.73149551]
[1768446398734,9.11454082,144.45,144.38,8.73149551]
[1768446399637,0.04821795,144.43,144.4,0.04506636]
[1768446400633,0.04821795,144.43,144.36,6.2353]
[1768446400634,9.16275877,144.43,144.36,14.96679551]
[1768446401639,9.16275877,144.43,144.38,0.05117797]
[1768446403838,9.16275877,144.43,144.34,8.73149551]
[1768446404146,9.11454082,144.43,144.34,8.73149551]
[1768446404939,15.34774082,144.42,144.37,0.04538914]
[1768446405144,0.04708374,144.4,144.37,0.04538914]
[1768446406939,0.04708374,144.4,144.34,8.73149551]
[1768446407943,0.04708374,144.4,144.36,0.05238861]
[1768446408444,0.04708374,144.4,144.36,8.78388412]
[1768446408640,9.11454082,144.44,144.37,8.73149551]
[1768446409644,9.11454082,144.44,144.39,0.05241544]
[1768446409840,0.05286011,144.42,144.39,0.05241544]
[1768446412744,9.11454082,144.44,144.39,0.05241544]
[1768446413049,15.14869366,144.45,144.39,8.46010551]
[1768446414449,0.0437154,144.43,144.39,8.46010551]
[1768446417749,8.96050906,144.43,144.34,14.64399007]
[1768446417955,8.96050906,144.43,144.32,8.40769007]
[1768446417956,8.91679366,144.43,144.32,8.40769007]
[1768446418752,8.91679366,144.39,144.32,8.40769007]
[1768446418955,0.04756408,144.37,144.32,8.40769007]
[1768446419949,0.04756408,144.37,144.33,0.0450795]
[1768446420850,0.04756408,144.37,144.33,8.45276957]
[1768446421055,15.15009366,144.42,144.33,8.45276957]
[1768446421356,15.15009366,144.42,144.33,8.40769007]
[1768446421850,8.91679366,144.41,144.33,8.40769007]
[1768446422060,0.05182725,144.38,144.36,0.04981465]
[1768446422259,0.05182725,144.38,144.32,2.68441792]
[1768446422260,0.05182725,144.38,144.31,96.46509007]
[1768446422555,8.96862091,144.38,144.31,96.46509007]
[1768446423057,8.96862091,144.38,144.32,8.40769007]
[1768446423250,8.96862091,144.38,144.34,0.04661311]
[1768446428760,8.96862091,144.38,144.33,1.72000725]
[1768446428761,8.91679366,144.35,144.27,8.40769007]
[1768446428971,8.91679366,144.35,144.28,1.72000725]
[1768446429670,0.04980069,144.33,144.3,0.05298034]
[1768446431267,8.91679366,144.37,144.3,10.18067766]
[1768446431958,8.91679366,144.37,144.32,1.72000725]
[1768446432252,8.91679366,144.37,144.29,6.2385]
[1768446432253,8.91679366,144.37,144.33,0.04904078]
[1768446432562,10.68153018,144.36,144.28,10.12769732]
[1768446432953,8.00053652,144.36,144.28,10.12769732]
[1768446433162,8.91679366,144.35,144.28,10.12769732]
[1768446433468,0.0444389,144.33,144.28,10.12769732]
[1768446433663,0.0444389,144.33,144.3,0.05322386]
[1768446435768,8.96123256,144.33,144.27,1.72000725]
[1768446436869,8.96123256,144.33,144.29,0.04708105]
[1768446438166,0.0444389,144.33,144.29,8.45477112]
[1768446438768,8.91679366,144.35,144.3,1.72000725]
[1768446439966,0.04784615,144.34,144.3,1.72000725]
[1768446440160,0.04784615,144.34,144.29,10.17477837]
[1768446442066,8.21848413,144.37,144.3,9.33167984]
[1768446442369,7.65999181,144.39,144.32,9.33167984]
[1768446443368,0.04941394,144.37,144.34,0.04660483]
[1768446445260,7.70940575,144.37,144.31,7.95750725]
[1768446445967,7.70940575,144.37,144.31,15.56917984]
[1768446446364,7.70940575,144.37,144.33,0.04436212]
[1768446447873,0.04941394,144.37,144.33,0.04436212]
[1768446449567,7.70940575,144.37,144.33,0.04436212]
[1768446449769,7.70940575,144.37,144.27,7.61167259]
[1768446449972,7.65999181,144.37,144.29,1.72000725]
[1768446450272,7.65999181,144.37,144.29,9.33167984]
[1768446450473,7.65999181,144.37,144.29,7.61167259]
[1768446450678,7.65999181,144.37,144.29,9.33167984]
[1768446450869,0.05114562,144.34,144.32,0.04858695]
[1768446451173,0.04657407,144.34,144.32,0.04858695]
[1768446452170,6.2348,144.38,144.32,0.04858695]
[1768446452171,7.65999181,144.38,144.32,0.04858695]
[1768446453274,0.0500095,144.36,144.32,0.04858695]
[1768446453582,7.65999181,144.33,144.25,7.61167259]
[1768446453869,7.65999181,144.33,144.24,1.72000725]
[1768446454066,7.65999181,144.31,144.24,1.72000725]
[1768446454267,7.65999181,144.33,144.25,9.33167984]
[1768446454469,7.65999181,144.35,144.27,9.33167984]
[1768446454775,0.04619843,144.32,144.3,0.05155398]
[1768446455471,0.04619843,144.32,144.26,1.72000725]
[1768446455671,0.04619843,144.32,144.25,7.61167259]
[1768446455672,7.70619024,144.32,144.25,9.33167984]
[1768446456280,7.70619024,144.32,144.25,15.57187984]
[1768446456474,7.70619024,144.32,144.27,0.05258758]
[1768446462185,7.65999181,144.35,144.27,7.66426017]
[1768446462780,7.65999181,144.35,144.28,7.61167259]
[1768446463086,7.65999181,144.35,144.28,9.33167984]
[1768446463283,0.04546019,144.33,144.3,0.04966799]
[1768446463680,1.72000725,144.37,144.3,7.66134058]
[1768446463885,7.65999181,144.38,144.3,9.38134783]
[1768446464787,0.0462674,144.35,144.3,9.38134783]
[1768446467092,0.0462674,144.35,144.3,7.66134058]
[1768446467786,9.42626646,144.35,144.3,0.04966799]
[1768446469383,7.70625921,144.35,144.3,0.04966799]
[1768446469685,9.42626646,144.35,144.3,0.04966799]
[1768446472489,9.42626646,144.35,144.27,6.2394]
[1768446473592,9.3514802,144.33,144.23,22.99491535]
[1768446473788,7.63147295,144.31,144.23,22.99491535]
[1768446473988,9.3514802,144.31,144.23,22.99491535]
[1768446474187,9.3514802,144.31,144.23,24.7149226]
[1768446474686,0.05154403,144.28,144.26,0.04395225]
[1768446475695,7.63147295,144.36,144.27,8.4154129]
[1768446475887,7.63147295,144.36,144.27,7.0354129]
[1768446476190,7.63147295,144.36,144.28,1.72000725]
[1768446476692,0.05087658,144.33,144.31,0.04572274]
[1768446477580,0.05087658,144.33,144.28,8.75542015]
[1768446478082,7.63147295,144.36,144.3,8.75542015]
[1768446478288,7.63147295,144.36,144.3,7.0354129]
[1768446479185,0.04384503,144.34,144.32,0.05074293]
[1768446481195,7.63147295,144.38,144.32,0.05074293]
[1768446482389,0.04900529,144.36,144.32,0.05074293]
[1768446484297,7.63147295,144.38,144.32,7.08615583]
[1768446485495,0.04611279,144.36,144.32,7.08615583]
[1768446491800,0.04611279,144.36,144.32,0.05074293]
[1768446494100,0.04611279,144.36,144.32,7.08615583]
[1768446504802,7.63147295,144.38,144.33,6.2367]
[1768446505907,0.05146414,144.37,144.32,7.08615583]
[1768446507807,0.05146414,144.37,144.32,13.32335583]
[1768446510311,0.05146414,144.37,144.33,7.01912106]
[1768446518223,6.2338,144.41,144.33,7.01912106]
[1768446518422,13.34762082,144.41,144.33,7.01912106]
[1768446518724,7.11382082,144.41,144.34,7.01912106]
[1768446519325,0.04364594,144.39,144.36,0.04544714]
[1768446528232,7.11382082,144.43,144.36,7.0645682]
[1768446529329,0.04577871,144.41,144.36,7.0645682]
[1768446529844,0.04577871,144.41,144.36,13.2999682]
[1768446536141,0.04577871,144.41,144.37,6.65818077]
[1768446537438,2.68759763,144.47,144.38,6.65818077]
[1768446537439,6.36920139,144.46,144.38,6.65818077]
[1768446538237,0.04534402,144.43,144.41,0.05122755]
[1768446538439,6.41454541,144.43,144.36,12.89348077]
[1768446538641,6.41454541,144.43,144.36,6.65818077]
[1768446539542,6.41454541,144.43,144.34,6.65818077]
[1768446539739,6.36920139,144.43,144.34,6.65818077]
[1768446540730,0.04756877,144.4,144.37,0.05173521]
[1768446540936,0.04409735,144.4,144.37,0.04852597]
[1768446545147,6.36920139,144.44,144.37,6.70670674]
[1768446545345,6.36920139,144.44,144.37,6.65818077]
[1768446545546,6.36920139,144.44,144.38,6.65818077]
[1768446545747,6.2312,144.47,144.38,6.65818077]
[1768446545748,6.36920139,144.46,144.38,6.65818077]
[1768446546144,0.04666781,144.43,144.41,0.04907561]
[1768446547448,0.04666781,144.43,144.38,6.65818077]
[1768446548541,0.04666781,144.43,144.39,0.05196565]
[1768446557054,6.36920139,144.45,144.39,6.71014642]
[1768446557955,6.36920139,144.45,144.39,12.94424642]
[1768446558143,0.05109297,144.43,144.39,12.94424642]
[1768446558547,0.02285243,144.43,144.39,12.94424642]
[1768446558755,0.02285243,144.43,144.39,14.6628994]
[1768446560755,0.02285243,144.43,144.39,12.94424642]
[1768446566658,0.02285243,144.43,144.4,6.45650239]
[1768446566854,6.59321647,144.47,144.41,6.45650239]
[1768446567858,0.0528484,144.45,144.43,0.04543401]
[1768446580370,0.0528484,144.45,144.43,6.5019364]
[1768446581071,0.0528484,144.45,144.43,0.04543401]
[1768446584171,6.59321647,144.5,144.43,6.5019364]
[1768446584372,6.59321647,144.5,144.43,8.22058938]
[1768446585172,0.04558032,144.48,144.43,8.22058938]
[1768446585870,0.04558032,144.48,144.44,6.45650239]
[1768446586071,6.59321647,144.52,144.44,6.45650239]
[1768446586269,6.59321647,144.52,144.46,6.45650239]
[1768446587069,0.05297659,144.5,144.48,0.04511361]
[1768446589477,0.05297659,144.5,144.46,6.45650239]
[1768446590372,0.05297659,144.5,144.47,0.0452716]
[1768446590572,6.77106001,144.5,144.43,6.2324]
[1768446590778,6.71808342,144.49,144.43,12.62406393]
[1768446591179,0.05297659,144.5,144.44,6.39166393]
[1768446591474,6.77106001,144.5,144.44,6.39166393]
[1768446591678,6.77106001,144.5,144.46,0.04846492]
[1768446592772,0.05297659,144.5,144.46,0.04846492]
[1768446600781,0.05297659,144.5,144.46,6.44012885]
[1768446601879,6.2281,144.54,144.47,6.39166393]
[1768446602474,96.8392,144.6,144.48,6.39166393]
[1768446602683,96.8392,144.6,144.47,1.71865298]
[1768446602684,1.71865298,144.57,144.5,6.39166393]
[1768446603181,0.05005046,144.55,144.52,0.04720799]
[1768446605775,6.76813388,144.55,144.52,0.04720799]
[1768446605975,8.4367364,144.53,144.47,6.39166393]
[1768446606176,6.71808342,144.52,144.47,6.39166393]
[1768446606771,6.71808342,144.55,144.46,1.71865298]
[1768446606976,0.00116519,144.52,144.49,0.0441085]
[1768446608278,0.00116519,144.52,144.49,6.43577243]
[1768446609988,0.00116519,144.52,144.49,0.0441085]
[1768446611786,6.71924861,144.52,144.49,0.0441085]
[1768446612979,6.71924861,144.52,144.45,6.39166393]
[1768446613991,6.71924861,144.52,144.47,0.05002347]
[1768446619795,0.00116519,144.52,144.47,6.4416874]
[1768446621495,0.00116519,144.52,144.49,6.43361127]
[1768446624901,0.00116519,144.52,144.49,12.66341127]
[1768446625087,0.00116519,144.52,144.5,6.6144727]
[1768446625292,6.41822281,144.58,144.5,6.6144727]
[1768446626195,0.05264522,144.55,144.53,0.05044286]
[1768446632004,0.00853672,144.55,144.53,0.05044286]
[1768446636799,6.42675953,144.55,144.5,6.6144727]
[1768446637796,6.42675953,144.55,144.51,0.04540264]
[1768446640606,6.42675953,144.55,144.47,88.3744727]
[1768446641806,12.65445953,144.55,144.5,0.04633481]
[1768446643111,6.42675953,144.55,144.5,0.04633481]
[1768446645014,0.00853672,144.55,144.5,6.66080751]
[1768446650620,0.00853672,144.55,144.51,6.48793417]
[1768446651917,0.00853672,144.55,144.51,12.71683417]
[1768446652320,0.00853672,144.55,144.51,6.48793417]
[1768446654125,0.00853672,144.55,144.5,0.04633481]
[1768446659427,0.00853672,144.55,144.5,6.53426898]
[1768446660014,0.00853672,144.55,144.51,6.48793417]
[1768446660230,0.00853672,144.55,144.52,6.48793417]
[1768446665131,0.00853672,144.55,144.52,6.2286]
[1768446665330,6.2253,144.6,144.52,6.2286]
[1768446665331,6.58114648,144.6,144.53,6.48793417]
[1768446666221,6.58114648,144.6,144.55,0.05268695]
[1768446666427,0.05170782,144.58,144.55,0.05268695]
[1768446668234,6.58114648,144.6,144.55,0.05268695]
[1768446668739,6.58114648,144.63,144.55,6.54062112]
[1768446668939,6.58114648,144.63,144.55,6.48793417]
[1768446669135,0.04882642,144.6,144.58,0.05192658]
[1768446669337,0.00468874,144.6,144.58,0.05192658]
[1768446670435,6.58114648,144.65,144.58,6.53986075]
[1768446671645,0.05037533,144.63,144.58,6.53986075]
[1768446678146,0.05037533,144.63,144.59,8.20215118]
[1768446678938,0.05037533,144.63,144.6,6.48793417]
[1768446679138,6.58114648,144.69,144.61,8.20215118]
[1768446680044,6.58114648,144.69,144.62,6.48793417]
[1768446680243,6.58114648,144.69,144.64,0.04882036]
[1768446680754,6.40141826,144.67,144.64,0.04882036]
[1768446681557,6.4536626,144.67,144.64,0.04882036]
[1768446681762,0.05224434,144.67,144.64,0.04882036]
[1768446684765,0.05224434,144.67,144.64,6.63941283]